Cogmind - Beta 14 @@@ ROGUE MODE // 2024.12.26 @ 09:09:28 Player: buwwet Result: Destroyed by G-47 Trooper with Particle Gun Performance ------------- Evolutions (0) 0 Regions Visited (2) 400 Robots Destroyed (9) 45 Value Destroyed (286) 286 Prototype IDs (0) 0 Alien Tech Used (0) 0 Bonus (0) 0 TOTAL SCORE: 731 Bonus ------- None Cogmind --------- Core Integrity 0/250 Matter 234/300 Energy 160/160 System Corruption 0% Temperature Hot (212) Movement Treading (320) Ox2 Location -10/Mines Parts ------- > --- POWER (1) -------- Light Nuclear Core > --- PROPULSION (2) --- Light Treads Light Treads > --- UTILITY (2) ------ Huge Storage Unit Targeting Computer > --- WEAPON (2) ------- Beam Cannon > --- INVENTORY (25) --- Aluminum Leg Aluminum Leg Wheel Compact Wheel Medium Storage Unit Power Shielding Grenade Launcher Grenade Launcher Peak State ------------ > --- POWER ------------ Light Ion Engine > --- PROPULSION ------- Light Treads Wheel > --- UTILITY ---------- Huge Storage Unit Improved Terrain Scanner > --- WEAPON ----------- Medium Laser Medium Laser > --- INVENTORY -------- Light Ion Engine Light Treads Aluminum Leg Aluminum Leg Wheel Wheel Compact Wheel Medium Storage Unit Light Assault Rifle Grenade Launcher [Rating: 10] Favorites ----------- Power Light Ion Engine Engine Light Ion Engine Power Core Light Nuclear Core Propulsion Light Treads Treads Light Treads Wheel Wheel Utility Huge Storage Unit Device Improved Terrain Scanner Storage Huge Storage Unit Processor Targeting Computer Protection Power Shielding Weapon Medium Laser Energy Gun Medium Laser Energy Cannon Beam Cannon Ballistic Gun Light Assault Rifle Build | -11 -10 -10 ------- Run | Yrd Mat Min Slots Evolved . | . . . Power . | . . . Propulsion . | . . . Utility . | . . . Weapon . | . . . Parts Attached 26 | 8 8 10 Power 3 | 1 . 2 Engine 2 | 1 . 1 Core 1 | . . 1 Reactor . | . . . Propulsion 7 | 2 2 3 Treads 4 | 1 1 2 Leg . | . . . Wheel 3 | 1 1 1 Hover . | . . . Flight . | . . . Utility 8 | 2 5 1 Device 4 | 1 3 . Storage 2 | 1 1 . Processor 1 | . . 1 Hackware . | . . . Protection 1 | . 1 . Artifact . | . . . Weapon 8 | 3 1 4 Energy Gun 3 | 2 . 1 Energy Cannon 2 | . . 2 Ballistic Gun 3 | 1 1 1 Ballistic Cannon . | . . . Launcher . | . . . Special Weapon . | . . . Impact Weapon . | . . . Slashing Weapon . | . . . Piercing Weapon . | . . . Special Melee Weapon . | . . . Unidentified Prototypes . | . . . Parts Lost 11 | . 3 8 Power 2 | . . 2 Propulsion 3 | . 1 2 Utility 3 | . 2 1 Weapon 3 | . . 3 Highest Loss Streak 8 | . 2 8 To Critical Strikes . | . . . Average Slot Usage (%) 97 | . 97 95 Engine 12 | . 14 4 Core 1 | . . 9 Treads 15 | . 14 18 Wheel 12 | . 13 9 Device 10 | . 11 1 Storage 14 | . 14 14 Processor 2 | . . 12 Energy Gun 17 | . 18 12 Energy Cannon 1 | . . 7 Ballistic Gun 8 | . 9 3 Peak Build Rating 10 | 9 10 10 Average Rating 8 | 6 8 8 On Entrance 5 | . 9 8 Naked Turns . | . . . Heaviest Build 90 | 13 88 90 Greatest Support 40 | 20 20 40 Greatest Overweight (x) 8 | 1 8 8 Average Overweight (x) 5 | . 7 7 Largest Inventory Capacity 25 | 8 25 25 Average Capacity 21 | 7 24 25 Most Carried 14 | 6 14 14 Average Carried 9 | 4 11 10 Final Capacity 25 | 8 25 25 Final Carried 14 | 6 14 8 Class Distribution -------------------- 100% | Mutant Dominant Class ---------------- Mutant | -10/Materials Mutant | -10/Mines Resources | -11 -10 -10 ----------- Run | Yrd Mat Min Matter Collected 457 | 279 60 118 Remotely . | . . . Salvage Created 358 | 20 214 124 Parts 20 | 2 11 7 Haulers Intercepted 1 | . 1 . Recyclers Shooed . | . . . Parts Field Recycled . | . . . Retrieved Matter . | . . . Parts Self-Destructed . | . . . Prevented . | . . . Kills | -11 -10 -10 ------- Run | Yrd Mat Min Combat Hostiles Destroyed 7 | . 4 3 Guns 3 | . 3 . Cannons 3 | . . 3 Classes Destroyed 3 | 1 2 . Tunneler 1 | 1 . . Hauler 1 | . 1 . Grunt 7 | . 4 3 Best Kill Streak 3 | 1 2 3 Combat Bots Only 3 | . 2 3 Max Kills in Single Turn 1 | 1 1 1 Gunslinging . | . . . Exploded . | . . . Melee . | . . . Uniques/NPCs Destroyed . | . . . Combat | -11 -10 -10 -------- Run | Yrd Mat Min Hostile Shots Fired 104 | . 32 72 Missed 16 | . 5 11 Damage Taken 1239 | . 383 856 Core 264 | . 90 174 Absorbed by Shields . | . . . Core Remaining (%) 100 | 100 . . Volleys Fired 40 | 1 24 15 Largest 2 | 2 2 2 Hottest 110 | 100 100 110 Shots Fired 74 | 2 42 30 Gun 65 | 2 42 21 Cannon 9 | . . 9 Launcher . | . . . Special . | . . . Kinetic 23 | . 18 5 Thermal 51 | 2 24 25 Explosive . | . . . Electromagnetic . | . . . Robot Hit Streak 8 | 2 8 7 Robot Miss Streak 4 | . 4 4 Penetration Max . | . . . Secondary Targets . | . . . Shots Hit Robots 53 | 2 29 22 Core Hits 20 | 1 12 7 Critical Kills . | . . . Critical Parts Destroyed . | . . . Critical Strikes 3 | 1 1 1 Burn 3 | 1 1 1 Melee Attacks . | . . . Impact . | . . . Slashing . | . . . Piercing . | . . . Sneak Attacks . | . . . Combat Hostiles . | . . . Follow-up Attacks . | . . . Damage Inflicted 654 | 26 312 316 Guns 533 | 26 312 195 Cannons 103 | . . 103 Explosions . | . . . Melee . | . . . Ramming 18 | . . 18 Kinetic 122 | . 101 21 Thermal 514 | 26 211 277 Explosive . | . . . Electromagnetic . | . . . Impact . | . . . Slashing . | . . . Piercing . | . . . Highest Corruption . | . . . Average Corruption . | . . . Corruption Purged . | . . . Corruption Blocked . | . . . Overload Shots . | . . . Overflow Damage . | . . . Projectiles . | . . . Explosions . | . . . Melee . | . . . Knockbacks . | . . . Impact . | . . . Kinetic . | . . . Secondary . | . . . Self-Inflicted Damage . | . . . Shots . | . . . Rammed 5 | . . 5 Targets Rammed 5 | . . 5 Kicked . | . . . Crushed . | . . . Highest Temperature 410 | 39 313 410 Average Temperature 172 | 24 119 236 Received Heat Transfer 741 | . 234 507 Effects 3 | . . 3 Matter Decay 2 | . . 2 Damage (minor) 1 | . . 1 Siege Activations . | . . . Robots Corrupted . | . . . Combat Hostiles . | . . . Parts Fried . | . . . Impact Corruptions . | . . . Robots Melted 1 | . 1 . Combat Hostiles 1 | . 1 . Parts Melted 4 | 1 3 . Heat Transferred 1665 | 148 703 814 Parts Sabotaged . | . . . Parts Stolen . | . . . Parts Stripped . | . . . Power Chain Reactions . | . . . Alert | -11 -10 -10 ------- Run | Yrd Mat Min Peak Influence 108 | 5 108 60 Initial 3 | . 3 . Average 29 | 2 36 24 Maximum Alert Level . | . . . Low Security (%) 100 | 100 100 100 Level 1 . | . . . Level 2 . | . . . Level 3 . | . . . Level 4 . | . . . Level 5 . | . . . High Security . | . . . Max Security . | . . . Squads Dispatched . | . . . Investigation . | . . . Extermination . | . . . Reinforcement . | . . . Assault . | . . . Garrison . | . . . Intercept . | . . . Searches Triggered . | . . . Construction Impeded . | . . . Haulers Reinforced . | . . . Active Scanning Responses . | . . . Cargo Convoy Interrupts . | . . . Stealth | -11 -10 -10 --------- Run | Yrd Mat Min Distress Signals . | . . . Communications Jammed . | . . . Distress Signals . | . . . Times Spotted 14 | . 10 4 Peak Tracking Total 4 | . 3 4 Tactical Retreats . | . . . Traps | -11 -10 -10 ------- Run | Yrd Mat Min Traps Triggered . | . . . Indirectly . | . . . Trap Hack Attempts . | . . . Triggered . | . . . Disarmed . | . . . Reprogrammed . | . . . Reused . | . . . Traps Extracted . | . . . Installed . | . . . Triggered . | . . . Machines | -11 -10 -10 ---------- Run | Yrd Mat Min Machines Disabled . | . . . Max in Single Turn . | . . . Machines Repaired . | . . . Machines Dismantled . | . . . Machines Sabotaged . | . . . Overloaded Fab Kills . | . . . Hacking | -11 -10 -10 --------- Run | Yrd Mat Min Machines Accessed 3 | . 3 . Terminals 3 | . 3 . Fabricators . | . . . Repair Stations . | . . . Recycling Units . | . . . Scanalyzers . | . . . Garrison Access . | . . . Total Hacks 7 | . 7 . Successful 1 | . 1 . Failed 6 | . 6 . Catastrophic 2 | . 2 . Database Lockouts . | . . . Manual 5 | . 5 . Terminals 7 | . 7 . Fabricators . | . . . Repair Stations . | . . . Recycling Units . | . . . Scanalyzers . | . . . Garrison Access . | . . . Terminal Hacks 1 | . 1 . Hauler Manifests 1 | . 1 . Fabricator Hacks . | . . . Repair Station Hacks . | . . . Recycling Unit Hacks . | . . . Scanalyzer . | . . . Garrison Access Hacks . | . . . Unauthorized Hacks . | . . . Terminals . | . . . Fabricators . | . . . Repair Stations . | . . . Recycling Units . | . . . Scanalyzers . | . . . Garrison Access . | . . . Data Cores Recovered . | . . . Used . | . . . Hacking Detections 3 | . 3 . Full Trace Events . | . . . Feedback Events . | . . . Feedback Blocked . | . . . Robot Schematics Acquired . | . . . Robots Built . | . . . Authchips . | . . . Time . | . . . Total Robot Build Rating . | . . . Part Schematics Acquired . | . . . Parts Built . | . . . Authchips . | . . . Time . | . . . Total Part Build Rating . | . . . Parts Repaired . | . . . Time . | . . . Parts Recycled . | . . . Recycled Matter . | . . . Retrieved Matter . | . . . Retrieved Components . | . . . Parts Scanalyzed . | . . . Part Schematics Acquired . | . . . Parts Damaged . | . . . Bothacking | -11 -10 -10 ------------ Run | Yrd Mat Min Used RIF Installer . | . . . Robots Hacked . | . . . Non-combat . | . . . Combat . | . . . Robot Hacks Applied . | . . . Relay Couplers Released . | . . . Fabnet Peak Effective % . | . . . Robots Rewired . | . . . Allies Hacked . | . . . Hacks Repelled . | . . . Allies | -11 -10 -10 -------- Run | Yrd Mat Min Total Allies . | . . . Largest Group . | . . . Highest-Rated Group . | . . . Highest-Rated Ally . | . . . Total Orders . | . . . Ally Attacks . | . . . Total Damage . | . . . Kills . | . . . Allies Corrupted . | . . . Allies Melted . | . . . Intel | -11 -10 -10 ------- Run | Yrd Mat Min Robot Analysis Total . | . . . Derelict Logs Recovered . | . . . Drone Launches . | . . . Drone Recoveries . | . . . Exploration | -11 -10 -10 ------------- Run | Yrd Mat Min Turns Passed 642 | 112 438 92 Spaces Moved 236 | 60 168 8 Core 3 | 3 . . Treads 64 | 54 9 1 Legs . | . . . Wheels 169 | 3 159 7 Hover . | . . . Flight . | . . . Fastest Speed 50 | 50 160 200 Average Speed 186 | 152 197 215 Slowest Speed 320 | 160 200 320 Overloaded Moves . | . . . Propulsion Burnouts . | . . . Robots Hopped . | . . . Cave-ins Triggered . | . . . Exploration Rate (%) 14 | 4 32 7 Regions Visited 2 Branch Regions 1 Pre-discovered Areas . | . . . Known Exits Taken . | . . . Unknown Exits Taken 2 | 1 1 . Scrap Searched . | . . . Spaces Dug . | . . . Terrain Destroyed . | . . . Melee . | . . . Projectile . | . . . AOE . | . . . Terrain Rammed . | . . . Walls Destroyed . | . . . Machines Disabled . | . . . Actions | -11 -10 -10 --------- Run | Yrd Mat Min Total 351 | 75 234 42 Wait 28 | 1 23 4 Move 234 | 59 167 8 Hop . | . . . Pick Up 16 | 6 10 . Fast Attach 9 | 7 1 1 Attach 9 | . 3 6 Detach 1 | . 1 . Swap 8 | 1 4 3 Drop 1 | . 1 . Fire 40 | 1 24 15 Melee . | . . . Ram . | . . . Kick . | . . . Crush 5 | . . 5 Escape Stasis . | . . . Rewire . | . . . Trap . | . . . Miscellaneous . | . . . Route ------- -11/Scrapyard -10/Materials (discovered 2 exits: [*Min x2]) -10/Mines (discovered 1 exit: [*Mat]) History --------- Turn | Location | Event 13 | -11/Scrapyard | Discovered new exit (range 15) 113 | -11/Scrapyard | Entered Materials 316 | -10/Materials | Build established: Mutant 417 | -10/Materials | Discovered new exit (range 6) 474 | -10/Materials | Discovered new exit (range 7) 551 | -10/Materials | Entered Mines 551 | -10/Mines | Discovered new exit (range 6) 579 | -10/Mines | Core integrity fell below 50% 607 | -10/Mines | Core integrity fell below 20% 643 | -10/Mines | Destroyed by G-47 Trooper with Particle Gun Last Messages --------------- 00619_ Critical hit (Burn: +37). 00622_ Overheating: Matter decay (-45). 00622_ Acquired 19 matter. 00623_ K-01 Serf collects debris. 00627_ G-47 Trooper overheating. 00628_ Med. Laser destroyed. 00629_ G-47 Trooper heat spikes uncontrollably. 00629_ Slammed into G-47 Trooper. 00630_ G-47 Trooper heat damages core (-10). 00630_ G-47 Trooper overheating. 00632_ K-01 Serf collects debris. 00632_ Slammed into G-47 Trooper. 00632_ G-47 Trooper overheating. 00633_ Overheating: Huge Storage Unit damaged (-166). 00635_ Overheating: Matter decay (-49). 00635_ K-01 Serf collects debris. 00635_ Slammed into G-47 Trooper. 00639_ K-01 Serf collects debris. 00641_ Slammed into G-47 Trooper. Map ----- +----------------------------------------------------+ | ???????????????????????????????????????????????? | | ???????????????????????????????????????????????? | | ???????????????????????????????????????????????? | | ???????????????????????????????????????????????? | | ???????????????????????????????????????????????? | | ???????????????????????????????????????????????? | | ???????????????????????????????????????????????? | | ??????????????????? ?????????????????????????? | | ??????????????????? ?????????????????????????? | | ??????????????????? ????????????????????????? | | ??????????????????? ????????????????????????? | | ??????????????????? ????????????????????????? | | ??????????????????? ????????????????????????? | | ???????????????????# #????????????????????????? | | ???????????????????# $#????????????????????????? | | ???????????????????# #????????????????????????? | | ???????????????????# #????????????????????????? | | ??????????????????? #????????????????????????? | | ???????????????????# #????????????????????????? | | ???????????????????# #????????????????????????? | | ???????????????????# #????????????????????????? | | ???????????????#???# #????????????????????????? | | ???????????????# ??# #????????????????????????? | | ??????????????## ## %######### #?????????????? | | ??????????##### g #?????????????? | | ????? k @ r < k#?????????????? | | ????? k r##### #????????????? | | ??????############ #?????? #???????????? | | ?????????????????## #?????????#???????????? | | ??????????????????# #????????????????????? | | ??????????????????# #???????????????????? | | ??????????????????## #???????????????????? | | ???????????????????## # ##???????????????????? | | ????????????????????# #####????????????????????? | | ????????????????????# #????????????????????????? | | ????????????????????# #????????????????????????? | | ????????????????????# #????????????????????????? | | ????????????????????# #????????????????????????? | | ????????????????????# ?????????????????????????? | | ????????????????????? ?????????????????????????? | | ????????????????????? ?????????????????????????? | | ???????????????????????????????????????????????? | | ???????????????????????????????????????????????? | | ???????????????????????????????????????????????? | | ???????????????????????????????????????????????? | | ???????????????????????????????????????????????? | | ???????????????????????????????????????????????? | | ???????????????????????????????????????????????? | | ???????????????????????????????????????????????? | | ???????????????????????????????????????????????? | +----------------------------------------------------+ Best States ------------- Heat Dissipation 35 Energy Generation 14 Energy Capacity 160 Matter Stores 300 Matter Capacity 300 Sight Range 16 Terrain Scan Range 16 Terrain Scan Density 10 Evasion (%) 40 Targeting Accuracy 5 Recoil Reduction 2 Item Schematics ----------------- None Robot Schematics ------------------ None Fabricated ------------ Nothing Alien Tech Used ----------------- None Achievements -------------- None Challenges ------------ None Game ------ Seed RiotCryofiberMediator Manual? 0 Play Time 00:08:15 Cumulative 41.7 hours Start 2024.12.26 @ 09:02:47 End 2024.12.26 @ 09:09:28 Sessions 1 Manual Loads 0 Difficulty Rogue Special Mode None Game No. 42 Rogue 42 Adventurer 0 Explorer 0 Win Type - Total 0 Types 0/0/0/0/0/0/0/0/0 Lore% 24 Gallery% 33 Achievement% 30 Wizard Run 0 Options --------- Layout 1 ASCII 0 Keyboard 0 Movement Arrows Keybinds 0 Fullscreen 2 Font 24/Terminus Map View 50x35 Zoom Use 0% Tactical HUD 1 Map Filters NONE Filters NONE Steam 1 RUN: 828e23c2-6f56-420d-9751-09b3b9b5a484